bitfinex/quotes_ETHUSD_20260130
["timestamp","ask_amount","ask_price","bid_price","bid_amount"]
[1769785204280,0.001,2740.6,2738.5,10.32697277]
[1769785204281,10.27846015,2740.6,2738.5,10.32697277]
[1769785204624,0.001,2740.6,2739.0,10.32697277]
[1769785204782,0.31251116,2741.2,2740.0,0.01101564]
[1769785204984,0.001,2741.5,2740.4,0.01101564]
[1769785205310,10.27746015,2742.7,2740.8,0.01101564]
[1769785205481,10.27746015,2742.7,2740.9,0.91210916]
[1769785205682,0.002,2743.7,2740.6,0.2335703]
[1769785205683,10.27746015,2742.2,2740.6,0.2335703]
[1769785205882,10.27746015,2742.2,2739.4,10.31595713]
[1769785205883,10.27846015,2741.8,2739.4,10.31595713]
[1769785206108,10.27746015,2741.5,2739.7,2.3378006]
[1769785206323,16.34414981,2741.2,2739.7,2.3378006]
[1769785206506,10.85624681,2741.1,2739.7,2.3378006]
[1769785206706,10.85624681,2740.9,2739.7,2.3378006]
[1769785206884,10.86726245,2740.7,2737.8,11.06576791]
[1769785207089,10.86726245,2740.7,2737.6,0.01101564]
[1769785207090,1.64462475,2740.6,2739.1,0.01101564]
[1769785207308,10.85624681,2740.9,2738.9,0.01101564]
[1769785207620,10.85624681,2740.9,2737.4,0.01101564]
[1769785207621,10.85624681,2740.1,2737.4,0.01101564]
[1769785207919,10.85624681,2739.9,2738.2,0.91300192]
[1769785208117,1.08562468,2739.8,2738.1,0.91301537]
[1769785208282,1.08562468,2739.8,2737.8,0.01101564]
[1769785208283,1.08562468,2739.8,2737.9,0.91308874]
[1769785208482,1.08562468,2739.8,2738.0,0.91307366]
[1769785208683,1.08562468,2739.8,2738.1,0.01101564]
[1769785209017,1.08562468,2739.8,2738.0,0.91305356]
[1769785209223,1.19418715,2739.7,2737.9,0.01101564]
[1769785209526,1.19418715,2739.7,2738.3,11.07678355]
[1769785209828,3.065823,2740.7,2738.7,0.002]
[1769785209988,0.001,2740.3,2738.7,0.002]
[1769785210519,0.001,2740.3,2738.8,11.07678355]
[1769785210716,0.001,2740.3,2739.0,11.07678355]
[1769785210930,0.001,2740.3,2739.1,1.10767836]
[1769785211339,0.001,2740.3,2738.7,0.002]
[1769785211701,20.62829181,2740.1,2738.7,0.002]
[1769785211901,0.001,2740.3,2738.7,0.002]
[1769785212414,6.448254,2740.1,2738.5,0.002]
[1769785212615,10.85624681,2739.7,2737.4,0.002]
[1769785212801,10.85624681,2739.7,2737.4,1.10877679]
[1769785213003,2.61036164,2739.6,2737.4,1.10877679]
[1769785213227,6.443608,2739.5,2737.4,1.10877679]
[1769785213431,3.742949,2739.5,2737.4,1.10877679]
[1769785213632,0.37539646,2739.4,2737.4,2.02204908]
[1769785213842,10.85624681,2739.4,2737.4,1.10877679]
[1769785214021,6.21604064,2739.2,2737.4,0.002]
[1769785214197,0.01101564,2739.8,2737.4,11.98102915]
[1769785214198,0.11341564,2739.8,2737.4,11.98102915]
[1769785214405,0.001,2740.3,2737.4,11.98102915]
[1769785214406,0.01201564,2740.3,2737.8,11.06576791]
[1769785214627,0.001,2740.3,2737.8,11.06576791]
[1769785214812,3.826019,2740.1,2737.9,11.06576791]
[1769785215012,3.826019,2740.1,2737.4,0.91526124]
[1769785215013,0.01101564,2739.8,2737.4,0.91526124]
[1769785215332,0.11341564,2739.8,2737.4,11.98102915]
[1769785215537,10.85624681,2739.9,2737.6,0.91320864]
[1769785215838,6.372343,2739.7,2737.7,1.56428268]
[1769785216003,0.1024,2739.3,2737.4,0.002]
[1769785216203,0.01101564,2738.9,2737.4,0.002]
[1769785216438,10.96966245,2739.3,2737.4,0.002]
[1769785216735,11.73566245,2739.3,2737.4,0.002]
[1769785216936,1.17356625,2739.2,2737.5,0.91323834]
[1769785217103,0.766,2739.5,2737.5,0.91322457]
[1769785217505,1.08672624,2739.8,2737.5,11.97899248]
[1769785217723,1.08672624,2739.8,2737.6,11.07678355]
[1769785217924,0.766,2739.9,2737.6,11.07678355]
[1769785217925,4.240948,2739.9,2737.6,11.07678355]
[1769785218145,0.766,2739.9,2737.6,11.07678355]
[1769785218336,4.23052,2740.2,2737.9,11.06576791]
[1769785218539,0.766,2740.2,2737.9,11.06576791]
[1769785218748,0.766,2740.2,2737.5,0.91322457]
[1769785218749,10.85624681,2739.8,2737.5,0.91322457]
[1769785218947,1.09774188,2739.7,2737.6,11.52258717]
[1769785219157,0.01101564,2739.5,2737.6,0.45681926]
[1769785219322,0.01101564,2739.3,2737.4,0.002]
[1769785219517,0.01101564,2739.1,2737.4,0.002]
[1769785219717,0.01101564,2738.9,2737.4,0.002]
[1769785220257,0.01101564,2738.7,2737.4,0.002]
[1769785220461,10.86726245,2738.5,2736.2,0.91365776]
[1769785220661,3.766878,2738.3,2736.5,0.91354925]
[1769785220861,3.766878,2738.3,2736.0,0.766]
[1769785220862,1.08672624,2738.4,2736.1,0.01101564]
[1769785221059,8.81898164,2738.3,2736.2,3.65460897]
[1769785221352,3.578246,2738.7,2736.5,11.06576791]
[1769785221557,0.01101564,2738.6,2736.6,0.91354235]
[1769785221920,0.01101564,2738.7,2736.6,11.97931026]
[1769785222118,0.01101564,2738.7,2738.1,0.002]
[1769785222644,2.43466964,2738.7,2738.1,0.002]
[1769785222848,0.25370696,2738.6,2738.1,0.002]
[1769785223167,7.13891,2738.9,2738.1,0.002]
[1769785223344,0.01101564,2738.8,2736.8,0.002]
[1769785223517,2.896049,2738.7,2736.6,6.89485261]
[1769785223724,0.01101564,2738.8,2736.6,6.89485261]
[1769785223951,4.139737,2738.7,2736.6,6.89485261]
[1769785224260,3.13188725,2738.9,2737.1,11.07678355]
[1769785225326,3.13188725,2738.9,2737.3,0.01101564]
[1769785225550,3.13188725,2738.9,2737.8,11.97890984]
[1769785225952,0.1024,2739.9,2737.8,11.97890984]
[1769785226157,0.1024,2739.9,2737.7,0.91316134]
[1769785226158,0.1024,2739.8,2737.7,0.91316134]
[1769785226428,3.25466,2739.4,2737.7,0.91316134]
[1769785226734,0.335706,2739.3,2737.7,0.91316134]
[1769785226934,0.1024,2739.5,2737.7,0.9131743]
[1769785226935,3.852429,2739.4,2737.7,0.9131743]
[1769785227179,0.1024,2739.5,2737.7,0.9131743]
[1769785227354,5.954621,2739.4,2737.6,0.91318405]
[1769785227540,0.1024,2739.5,2737.6,0.91320064]
[1769785227541,0.01101564,2739.3,2737.6,0.91320064]
[1769785227731,0.01101564,2739.3,2737.2,0.9133421]
[1769785227933,0.01101564,2739.3,2737.3,1.56435984]
[1769785228164,5.698922,2739.4,2737.3,1.56435984]
[1769785228376,4.867922,2739.4,2737.3,1.56435984]
[1769785228674,0.01101564,2739.3,2737.3,1.56435984]
[1769785228874,0.1024,2739.5,2737.3,12.63012775]
[1769785229037,1.09696625,2739.4,2737.5,11.06576791]
[1769785229232,5.44921764,2739.5,2737.5,11.06576791]
[1769785229587,0.766,2739.6,2737.5,11.06576791]
[1769785229770,0.01101564,2739.9,2737.6,11.97897655]
[1769785229932,0.01101564,2739.7,2737.6,11.97897655]
[1769785230131,0.01101564,2739.5,2737.6,0.91320864]
[1769785230357,0.01101564,2739.3,2737.7,0.45660432]
[1769785230559,4.279954,2739.5,2737.5,0.91323988]
[1769785230772,0.01101564,2739.2,2737.4,0.9132482]
[1769785230979,0.01101564,2739.2,2737.0,17.53576791]
[1769785231182,0.01101564,2739.3,2737.5,0.91323268]
[1769785231476,0.25347936,2739.3,2737.6,0.45662007]
[1769785231677,0.01101564,2739.8,2737.7,11.9789432]
[1769785231880,0.01101564,2739.7,2737.7,11.9789432]
[1769785232043,0.766,2740.0,2737.7,11.9789432]
[1769785232243,0.766,2740.0,2738.1,11.06576791]
[1769785232443,1.21698458,2741.2,2738.1,11.06576791]
[1769785232444,0.001,2740.3,2738.4,0.01101564]
[1769785232645,0.001,2740.3,2738.6,11.07678355]
[1769785232866,0.001,2740.3,2738.8,11.07678355]
[1769785233269,0.001,2740.3,2739.0,11.07678355]
[1769785233472,0.001,2740.3,2739.2,11.06576791]
[1769785233777,0.001,2740.3,2739.2,11.97844101]
[1769785233956,0.001,2740.3,2739.2,0.9126731]
[1769785234155,0.001,2740.3,2738.6,14.72824915]
[1769785234374,0.001,2740.3,2739.1,0.91268756]
[1769785234687,0.001,2740.1,2738.6,11.07678355]
[1769785234912,0.001,2740.1,2739.2,11.97843585]
[1769785235188,0.30495839,2741.2,2739.2,11.89128779]
[1769785235490,0.30495839,2741.2,2739.5,11.06576791]
[1769785235850,0.30495839,2741.2,2739.6,11.97830988]
[1769785236257,0.30495839,2741.2,2739.6,0.91254197]
[1769785236450,0.30495839,2741.2,2739.7,0.45627099]
[1769785237993,0.30495839,2741.2,2739.8,0.91247536]
[1769785238519,0.001,2741.8,2739.9,10.46078927]
[1769785238712,0.001,2741.8,2740.2,10.44977363]
[1769785239021,0.001,2741.8,2740.1,0.01101564]
[1769785239022,0.001,2741.8,2740.4,10.44977363]
[1769785239152,0.001,2741.8,2740.3,1.04607893]
[1769785239153,0.001,2741.8,2740.7,10.44977363]
[1769785239658,0.001,2741.8,2740.4,0.01101564]
[1769785239865,0.001,2741.8,2740.3,1.04607893]
[1769785240082,0.001,2741.8,2740.4,0.91227558]
[1769785240280,0.001,2741.8,2740.5,11.01051931]
[1769785241192,0.001,2741.8,2740.5,0.56074568]
[1769785241484,0.01101564,2741.7,2740.1,0.91237031]
[1769785241682,0.01101564,2741.7,2740.0,0.91238675]
[1769785242188,0.01101564,2741.7,2739.9,3.64974877]
[1769785242563,0.001,2741.8,2739.9,14.0995224]
[1769785242883,0.001,2741.8,2740.0,1.50229801]
[1769785243196,0.001,2741.8,2740.0,11.95207164]
[1769785243483,0.001,2741.8,2740.0,11.96308728]
[1769785243685,0.001,2741.8,2740.3,10.44977363]
[1769785243861,0.001,2741.8,2740.5,10.44977363]
[1769785244068,0.001,2741.8,2740.7,11.36194935]
[1769785244599,0.91318558,2743.7,2740.9,10.44977363]
[1769785244600,11.11411199,2743.5,2740.9,10.44977363]
[1769785244773,0.11341564,2743.4,2740.9,10.44977363]
[1769785244964,0.01101564,2743.2,2741.0,10.44977363]
[1769785245162,11.22752763,2743.4,2741.0,10.46078927]
[1769785245363,1.12275276,2743.3,2741.1,1.04607893]
[1769785246259,2.953837,2743.2,2741.2,0.91200933]
[1769785246592,0.001,2743.2,2741.2,0.91200933]
[1769785248186,0.01101564,2743.0,2741.1,1.95810354]
[1769785248357,11.12612763,2743.2,2741.1,1.95810354]
[1769785248560,11.12612763,2743.2,2741.2,1.60561119]
[1769785248561,1.22488804,2743.1,2741.2,1.60561119]
[1769785249496,12.35001567,2743.1,2741.2,1.60561119]
[1769785250193,11.12512763,2742.7,2741.2,1.60561119]
[1769785250379,11.12512763,2742.0,2739.9,10.44977363]
[1769785250581,11.12512763,2742.0,2740.1,0.91235975]
[1769785250785,11.12512763,2742.0,2740.0,0.91240648]
[1769785250996,11.12512763,2742.0,2740.0,0.91240455]
[1769785251293,1.11251276,2741.9,2740.1,1.13621782]
[1769785251464,1.11251276,2741.9,2740.2,0.91232633]
[1769785251793,1.11251276,2741.9,2740.1,2.04856389]
[1769785251991,1.11251276,2741.9,2740.1,1.13621782]
[1769785252160,0.01101564,2741.2,2739.3,10.44977363]
[1769785252360,0.01101564,2741.6,2739.2,0.91265498]
[1769785252361,0.01101564,2741.3,2739.2,0.91265498]
[1769785252565,11.12512763,2741.3,2739.3,0.91261463]
[1769785253362,11.12512763,2741.3,2738.9,10.46078927]
[1769785253595,11.12512763,2741.3,2738.7,0.01101564]
[1769785253596,0.01101564,2740.7,2738.7,0.91281523]
[1769785253901,0.01101564,2740.5,2738.5,0.91290759]
[1769785254382,18.77697763,2739.8,2737.3,10.44977363]
[1769785254585,11.12512763,2739.8,2737.9,0.91308608]
[1769785254970,0.01101564,2739.6,2737.8,0.91311836]
[1769785255165,4.139846,2739.5,2737.8,0.91311636]
[1769785255384,0.4261018,2739.4,2737.8,0.91311636]
[1769785255584,0.01101564,2739.4,2737.7,0.91315547]
[1769785255782,0.01101564,2739.4,2737.8,0.91313697]
[1769785255989,0.01101564,2739.6,2737.8,0.91313697]
[1769785256172,0.01101564,2739.6,2737.5,3.65285526]
[1769785256373,0.01101564,2739.2,2737.4,0.91327537]
[1769785256601,0.01101564,2739.3,2737.5,1.50161505]
[1769785256812,11.12512763,2739.6,2737.5,1.50161505]
[1769785257133,0.01101564,2739.4,2737.5,1.50161505]
[1769785257272,11.12512763,2739.6,2737.5,1.50161505]
[1769785257597,0.01101564,2739.4,2737.5,1.50161505]
[1769785257773,1.12462997,2739.4,2737.6,0.24148904]
[1769785257973,0.01101564,2739.3,2737.6,0.24148904]
[1769785258197,0.01101564,2739.0,2737.6,0.24148904]
[1769785258390,0.01101564,2738.7,2736.9,3.65375262]
[1769785258601,0.01101564,2738.7,2736.8,10.44977363]
[1769785258802,0.01101564,2738.7,2736.8,11.36322966]
[1769785258966,0.01101564,2739.1,2737.8,0.002]
[1769785259170,1.11361433,2739.4,2737.8,0.002]
[1769785259388,11.31409063,2739.3,2737.8,0.002]
[1769785259600,0.01101564,2739.1,2737.8,0.002]
[1769785260506,11.31409063,2739.3,2737.8,0.002]
[1769785260680,0.01101564,2739.2,2737.8,0.002]
[1769785260885,0.01101564,2739.0,2737.8,0.002]
[1769785261082,0.01101564,2738.8,2737.8,0.002]
[1769785261273,0.01101564,2738.4,2736.7,10.45177363]
[1769785261474,0.01101564,2738.6,2736.7,10.45177363]
[1769785261475,0.01101564,2738.3,2736.7,0.002]
[1769785261813,0.01101564,2738.2,2736.7,0.002]
[1769785262102,0.01101564,2738.4,2736.7,0.002]
[1769785262307,11.12512763,2738.0,2736.7,0.002]
[1769785262508,0.01101564,2737.8,2736.7,0.002]
[1769785262683,11.89012763,2738.0,2736.7,0.002]
[1769785262684,0.77601564,2738.0,2736.7,0.002]
[1769785262884,0.45586968,2738.4,2736.7,0.002]
[1769785263219,11.12512763,2738.6,2736.7,0.002]
[1769785263220,0.1024,2738.8,2736.7,10.45177363]
[1769785263422,0.01101564,2738.4,2736.7,0.002]
[1769785263624,2.194004,2738.7,2736.7,10.45177363]
[1769785264116,0.765,2738.8,2736.7,10.45177363]
[1769785264332,0.765,2738.8,2736.9,10.44977363]
[1769785264635,0.765,2738.8,2737.0,11.58609855]
[1769785264924,0.01101564,2738.7,2737.0,1.13632492]
[1769785265089,0.01101564,2738.3,2736.7,0.002]
[1769785265485,0.01101564,2737.9,2736.7,0.002]
[1769785265691,0.01101564,2738.1,2736.7,0.002]
[1769785265692,0.01101564,2737.6,2736.7,0.002]
[1769785265889,0.01101564,2737.4,2736.1,2.45393681]
[1769785266192,0.01101564,2737.9,2736.2,0.91366899]
[1769785266391,0.01101564,2737.7,2735.8,0.91380162]
[1769785266588,0.01101564,2737.7,2735.6,3.655444]
[1769785266589,0.01101564,2737.5,2735.6,3.655444]
[1769785266806,0.01101564,2737.7,2736.0,0.91372502]
[1769785267180,0.01101564,2737.8,2736.0,0.91373225]
[1769785267301,0.01101564,2737.6,2736.0,0.91373225]
[1769785267633,0.01101564,2737.6,2736.1,0.4568703]
[1769785267786,0.01101564,2737.6,2736.0,0.9137423]
[1769785267992,0.01101564,2737.7,2736.0,0.9137423]
[1769785268407,0.01101564,2737.6,2735.7,0.91384289]
[1769785268806,11.97192236,2737.7,2735.7,0.91384289]
[1769785268807,0.01101564,2737.8,2735.7,12.97689465]
[1769785268986,0.77701564,2738.0,2735.7,12.97689465]
[1769785269193,0.766,2738.0,2735.9,12.06305176]
[1769785269389,0.01101564,2738.6,2736.3,12.06305176]
[1769785269709,3.182177,2739.0,2736.5,12.06305176]
[1769785270032,0.01101564,2738.9,2736.5,12.06305176]
[1769785270201,0.01101564,2739.1,2736.7,12.06305176]
[1769785270390,1.2748938,2739.0,2737.0,12.9764606]
[1769785270690,0.92337476,2740.2,2737.0,12.9764606]
[1769785270691,0.188963,2739.3,2737.2,12.06305176]
[1769785270929,0.01101564,2738.6,2737.0,0.91340884]
[1769785271228,0.01101564,2739.1,2737.0,12.9764606]
[1769785271723,0.01101564,2738.6,2736.8,1.20740674]
[1769785271926,0.01101564,2738.8,2736.9,0.91342835]
[1769785272125,0.01101564,2738.9,2736.9,12.97648011]
[1769785272825,0.01101564,2738.7,2736.9,12.97648011]
[1769785273318,0.01101564,2738.9,2736.9,12.97648011]
[1769785273319,0.01101564,2738.5,2736.9,12.97648011]
[1769785273619,0.01101564,2738.9,2736.9,12.97648011]
[1769785273794,0.01101564,2738.7,2737.0,1.66302771]
[1769785274121,1.20963536,2738.9,2737.0,1.66302771]
[1769785274299,0.01101564,2738.8,2737.1,0.91337547]
[1769785274507,1.20963536,2738.9,2737.1,0.91337547]
[1769785274712,0.01101564,2738.8,2737.1,0.91337547]
[1769785274917,0.01101564,2738.8,2737.2,0.62299292]
[1769785275098,1.20963536,2738.9,2737.2,0.62299292]
[1769785276347,1.20963536,2738.9,2737.3,0.91330873]
[1769785277133,1.20963536,2738.9,2737.2,1.53633068]
[1769785277630,0.01101564,2738.8,2737.2,1.53633068]
[1769785277831,0.01101564,2738.8,2737.3,0.51898302]
[1769785278444,1.20963536,2738.9,2737.4,0.91327537]
[1769785278617,0.01101564,2738.8,2737.3,0.51898302]
[1769785278955,11.982938,2738.8,2737.3,0.51898302]
[1769785279163,11.982938,2738.4,2736.4,12.06305176]
[1769785279449,0.01101564,2738.1,2736.5,0.91357229]
[1769785279905,0.01101564,2738.1,2736.2,0.002]
[1769785279906,0.01101564,2737.7,2736.2,0.002]
[1769785280108,0.01101564,2737.3,2736.2,0.002]
[1769785280407,13.94833336,2737.7,2736.2,0.002]
[1769785280638,0.01101564,2737.6,2736.2,0.002]
[1769785281908,1.96539536,2737.7,2736.2,0.002]
[1769785282106,0.77701564,2737.9,2736.2,0.002]
[1769785282319,0.01101564,2737.7,2736.2,0.002]
[1769785282548,0.77701564,2737.9,2736.2,0.002]
[1769785282714,0.01101564,2737.6,2736.2,0.002]
[1769785283750,0.1024,2738.1,2736.2,0.002]
[1769785283949,0.1024,2738.1,2736.2,12.06505176]
[1769785283950,0.01101564,2737.9,2736.2,12.06505176]
[1769785284156,0.01101564,2737.9,2736.3,1.20650518]
[1769785284345,0.01101564,2737.5,2736.3,1.20650518]
[1769785284547,0.01101564,2737.5,2736.2,0.002]
[1769785284742,11.982938,2737.9,2736.2,0.002]
[1769785284950,0.766,2737.8,2736.2,0.002]
[1769785285343,0.19041684,2738.5,2736.2,12.06505176]
[1769785285532,0.01101564,2738.4,2736.4,12.06305176]
[1769785285729,0.01101564,2738.2,2736.2,0.002]
[1769785285976,0.01101564,2738.0,2736.2,0.002]
[1769785286262,0.01101564,2738.2,2736.2,12.06505176]
[1769785286427,11.97192236,2738.1,2736.2,0.002]
[1769785286628,0.01101564,2737.3,2736.2,0.002]
[1769785287158,0.01101564,2737.5,2736.2,0.002]
[1769785287384,3.16457,2737.5,2736.2,0.002]
[1769785287584,0.01101564,2737.4,2736.2,0.002]
[1769785287755,0.01101564,2737.2,2736.2,0.002]
[1769785288086,0.766,2737.3,2736.2,0.002]
[1769785288586,0.01101564,2737.2,2736.2,0.002]
[1769785289180,0.01101564,2737.0,2736.2,0.002]
[1769785289686,0.01101564,2737.2,2736.2,0.002]
[1769785290408,0.01101564,2737.2,2735.4,0.002]
[1769785290409,3.855,2736.9,2735.4,0.002]
[1769785290562,0.01101564,2736.8,2735.4,0.002]
[1769785291058,0.01101564,2736.7,2735.4,0.002]
[1769785291264,0.01101564,2736.9,2735.4,0.002]
[1769785291465,0.01101564,2736.7,2735.4,0.002]
[1769785291861,0.01101564,2736.4,2735.4,0.002]
[1769785292063,0.01101564,2736.3,2735.4,0.002]
[1769785292297,0.766,2736.2,2735.4,0.002]
[1769785292606,0.01101564,2735.8,2735.1,0.002]
[1769785292966,0.01101564,2735.8,2734.9,0.002]
[1769785293166,0.01101564,2735.6,2734.1,0.002]
[1769785293562,1.210411,2735.6,2734.1,0.002]
[1769785293768,1.19939536,2735.6,2734.1,0.002]
[1769785294965,1.19939536,2735.6,2734.3,0.002]
[1769785295161,0.766,2736.1,2734.3,12.06505176]
[1769785295367,0.1024,2736.7,2734.3,12.06505176]
[1769785295596,0.766,2736.9,2734.9,12.06305176]
[1769785295782,0.001,2737.5,2735.5,12.06305176]
[1769785295976,0.01101564,2737.2,2735.0,13.29271397]
[1769785296175,0.01101564,2737.0,2735.0,13.29271397]
[1769785296374,0.001,2737.5,2735.6,12.76527781]
[1769785296697,0.01101564,2737.4,2735.7,0.91384289]
[1769785296864,0.001,2737.5,2735.8,1.36791207]
[1769785297069,0.01101564,2737.4,2735.8,1.36791207]
[1769785297465,0.001,2737.5,2735.8,14.03672345]
[1769785297662,0.001,2737.5,2736.0,12.66881138]
[1769785298683,2.767238,2738.6,2736.2,12.66881138]
[1769785298887,0.11341564,2738.5,2736.4,12.66881138]
[1769785299081,0.01101564,2738.1,2736.4,12.66881138]
[1769785299679,0.01101564,2737.9,2736.3,1.38271066]
[1769785299879,0.01101564,2737.7,2736.0,0.91373059]
[1769785300079,0.01101564,2738.1,2736.0,13.58254197]
[1769785300421,0.01101564,2737.2,2735.0,2.14373326]
[1769785300568,0.01101564,2737.0,2735.0,1.22966221]
[1769785300774,0.766,2737.1,2735.0,2.14373153]
[1769785301035,0.766,2737.1,2735.1,1.846885]
[1769785301709,3.03211,2737.0,2735.1,1.846885]
[1769785301921,0.11341564,2737.7,2735.2,12.67982702]
[1769785302121,0.1024,2737.5,2735.2,12.67982702]
[1769785302343,0.01101564,2737.3,2735.3,1.4526712]
[1769785302523,12.59980816,2737.5,2735.3,1.4526712]
[1769785302836,0.8684,2737.5,2735.4,13.59377013]
[1769785303054,0.01101564,2737.9,2735.4,13.59377013]
[1769785303212,13.76737321,2738.6,2736.1,12.66881138]
[1769785303530,1.37793889,2738.5,2736.9,12.66881138]
[1769785303826,0.001,2738.7,2737.1,12.66881138]
[1769785304531,0.001,2738.7,2737.3,12.66881138]
[1769785304733,0.001,2738.7,2737.4,0.91327537]
[1769785304931,0.001,2738.7,2737.4,12.66881138]
[1769785305132,0.001,2738.7,2737.5,1.35820966]
[1769785305310,0.001,2738.7,2736.8,12.66881138]
[1769785305515,0.001,2738.7,2736.3,0.11341564]
[1769785305516,6.84300264,2738.6,2736.3,12.67982702]
[1769785305715,0.01101564,2738.4,2736.3,12.66881138]
[1769785306301,6.579211,2738.3,2736.3,12.66881138]
[1769785306503,23.6021538,2738.6,2736.3,12.66881138]
[1769785306708,12.49740816,2738.6,2736.4,15.34143714]
[1769785306908,6.047959,2738.4,2736.4,15.34145254]
[1769785307235,9.092028,2738.0,2736.4,1.75903658]
[1769785307448,0.01101564,2737.9,2735.9,12.66881138]
[1769785307656,8.588399,2737.8,2735.7,0.91381942]
[1769785307819,12.5084238,2737.7,2735.7,0.91382402]
[1769785308021,12.49740816,2737.7,2735.6,3.6554395]
[1769785308326,1.24974082,2737.6,2735.7,2.54624408]
[1769785308544,1.24974082,2737.6,2735.7,2.54626572]
[1769785308733,1.24974082,2737.6,2735.8,0.91380347]
[1769785309326,0.766,2737.5,2735.8,0.91380347]
[1769785309719,0.766,2737.5,2735.7,1.63242509]
[1769785309923,0.21258972,2737.4,2735.1,12.66881138]
[1769785310140,12.70999788,2737.4,2735.5,0.91388607]
[1769785310433,12.69898224,2737.4,2735.5,0.91389102]
[1769785310759,12.69898224,2737.4,2735.5,0.91390865]
[1769785310959,12.69898224,2737.4,2735.2,0.91400994]
[1769785311112,1.33093994,2737.3,2735.3,1.72388611]
[1769785311928,1.33093994,2737.3,2735.3,14.39269749]
[1769785312129,12.5094238,2738.5,2736.2,0.2335703]
[1769785312352,0.001,2738.5,2736.5,12.67982702]
[1769785312561,0.001,2738.5,2737.1,12.66881138]
[1769785312850,0.001,2738.5,2737.3,0.91330873]
[1769785313064,0.001,2738.7,2737.4,12.90238168]
[1769785313264,2.56475,2740.1,2737.8,12.66881138]
[1769785313423,12.49740816,2740.8,2738.4,12.66881138]
[1769785313622,2.913022,2741.1,2738.6,12.66881138]
[1769785313863,0.1024,2740.8,2738.6,12.66881138]
[1769785314081,0.6800435,2740.7,2738.7,1.2679827]
[1769785314360,0.01101564,2741.0,2738.7,1.2679827]
[1769785314574,8.892833,2740.9,2738.7,1.2679827]
[1769785314756,4.526696,2740.7,2738.7,1.2679827]
[1769785314924,0.01101564,2741.5,2738.9,0.2335703]
[1769785315125,5.974045,2741.6,2739.2,12.67982702]
[1769785315354,12.49740816,2742.3,2739.6,12.67982702]
[1769785315623,9.594903,2742.1,2739.8,12.67982702]
[1769785315823,0.11341564,2742.2,2739.8,12.67982702]
[1769785316019,0.766,2742.5,2739.8,12.67982702]
[1769785316020,1.26108238,2742.1,2740.0,12.67982702]
[1769785316224,17.634059,2742.1,2740.0,12.67982702]
[1769785316445,0.11341564,2742.4,2740.0,12.66881138]
[1769785316620,0.01101564,2742.2,2740.1,0.01101564]
[1769785316835,0.01101564,2742.0,2740.0,12.66881138]
[1769785317046,0.01101564,2742.0,2740.0,0.91240466]
[1769785317250,0.01101564,2742.0,2740.1,0.58301525]
[1769785317423,7.458912,2741.9,2740.0,0.91240594]
[1769785317623,5.227172,2741.9,2739.8,0.91245407]
[1769785317829,0.01101564,2742.0,2740.0,0.91240722]
[1769785318046,2.76,2742.2,2740.0,13.5812186]
[1769785318247,0.87941564,2742.3,2740.0,13.59223424]
[1769785318562,1.33768238,2742.2,2740.1,1.72419624]
[1769785318763,1.33768238,2742.2,2740.4,12.66881138]
[1769785318959,0.001,2742.2,2740.5,0.91224229]
[1769785319257,0.001,2742.2,2740.4,13.58106271]
[1769785319657,0.001,2742.2,2740.4,12.66881138]
[1769785319960,0.001,2742.2,2740.1,1.72419624]
[1769785320129,0.01101564,2741.9,2739.8,12.67982702]
[1769785320463,0.001,2742.2,2740.5,12.90238168]
[1769785320758,0.001,2742.2,2740.5,12.66881138]
[1769785320973,0.001,2742.2,2740.6,13.58102038]
[1769785321544,0.001,2742.2,2740.6,13.59203602]
[1769785321751,0.001,2742.2,2740.7,1.72409586]
[1769785321952,0.001,2742.2,2740.6,12.66881138]
[1769785322257,0.01101564,2742.0,2739.9,0.91242125]
[1769785322460,0.01101564,2742.0,2739.7,12.66881138]
[1769785322664,5.243749,2741.6,2739.4,0.765]
[1769785322864,0.01101564,2741.5,2739.5,0.91257528]
[1769785323043,0.26396696,2741.4,2739.6,0.53280086]
[1769785323239,3.332976,2741.6,2739.4,1.67758929]
[1769785323441,0.11341564,2742.1,2739.7,12.66881138]
[1769785323629,0.01201564,2742.2,2739.8,12.67982702]
[1769785323830,0.01201564,2742.2,2740.0,12.66881138]
[1769785324036,0.01101564,2742.0,2739.5,12.91339732]
[1769785324265,0.01101564,2741.8,2739.7,12.66881138]
[1769785324465,0.01101564,2741.4,2739.6,1.38259866]
[1769785324669,0.01101564,2741.4,2739.2,12.66881138]
[1769785324964,12.5084238,2741.6,2739.3,3.65053915]
[1769785325164,0.01101564,2742.0,2739.5,0.01101564]
[1769785325328,0.001,2742.2,2739.8,12.90238168]
[1769785325533,0.001,2742.2,2740.3,12.66881138]
[1769785325733,0.001,2742.2,2740.4,1.26688114]
[1769785326934,0.001,2742.2,2740.4,2.17915606]
[1769785327134,0.001,2742.2,2740.4,14.81358475]
[1769785327389,0.001,2742.2,2740.4,14.82460039]
[1769785327567,0.001,2742.2,2740.6,12.64544433]
[1769785327768,0.001,2742.2,2740.9,12.63442869]
[1769785328174,0.001,2743.2,2741.2,12.64544433]
[1769785328337,0.001,2743.2,2741.2,12.63442869]
[1769785329041,0.001,2743.2,2741.3,13.54640475]
[1769785329239,0.001,2743.2,2741.4,0.2335703]
[1769785329444,0.001,2743.2,2741.5,1.37799751]
[1769785329766,0.001,2743.2,2741.5,14.0124262]
[1769785330675,0.002,2743.7,2742.1,12.63442869]
[1769785330975,0.002,2743.7,2742.2,0.91167675]
[1769785331180,0.002,2743.7,2742.1,13.54611531]
[1769785331382,0.002,2743.3,2742.2,1.7193069]
[1769785331581,0.002,2743.3,2741.5,13.54631247]
[1769785331886,0.002,2743.3,2741.2,0.765]
[1769785332183,0.002,2743.3,2741.3,3.64789474]
[1769785332387,12.57363639,2743.2,2741.2,0.91200894]
[1769785332685,1.25756364,2743.1,2741.3,0.91197002]
[1769785332856,1.25756364,2743.1,2741.0,12.63442869]
[1769785333181,0.002,2743.3,2741.6,12.64544433]
[1769785333386,0.002,2743.3,2741.6,13.41044433]
[1769785333583,0.002,2743.3,2741.8,12.64544433]
[1769785333803,0.002,2743.7,2742.2,12.64544433]
[1769785333952,0.002,2743.7,2742.2,12.63442869]
[1769785334147,0.002,2743.7,2742.3,1.33994287]
[1769785334484,0.002,2743.7,2742.3,13.97437156]
[1769785335156,0.002,2743.7,2742.4,0.91161026]
[1769785335680,0.002,2743.7,2742.3,14.88599776]